bitfinex-derivatives/quotes_BNBF0:USTF0_20251010
["timestamp","ask_amount","ask_price","bid_price","bid_amount"]
[1760056892289,0.19668889,1263.9,1263.8,1.3165161]
[1760056893184,0.19668889,1263.9,1263.8,0.73457681]
[1760056894290,0.19668889,1263.9,1263.8,1.31642455]
[1760056894692,0.19668889,1263.9,1263.8,0.73457681]
[1760056895094,0.19668889,1263.9,1263.8,0.54058452]
[1760056903502,0.19668889,1263.9,1263.8,1.12244455]
[1760056904107,0.3934602,1263.9,1263.8,1.12244455]
[1760056904506,0.19668889,1263.9,1263.8,1.12244455]
[1760056904908,0.19668889,1263.9,1263.8,1.31643684]
[1760056908805,0.19668889,1263.9,1263.8,0.54058452]
[1760056909710,0.3934602,1263.9,1263.8,0.54058452]
[1760056910806,0.19668889,1263.9,1263.8,0.54058452]
[1760056912614,0.19668889,1263.9,1263.8,1.50873051]
[1760056914416,0.19668889,1263.9,1263.8,0.73457681]
[1760056914710,0.19668889,1263.9,1263.8,1.50873051]
[1760056915110,0.19668889,1263.9,1263.8,1.31473822]
[1760056916014,0.19668889,1263.9,1263.8,0.54058452]
[1760056918314,0.19668889,1263.9,1263.8,1.70253727]
[1760056918811,0.19668889,1263.9,1263.8,1.31532267]
[1760056919010,0.19668889,1263.9,1263.8,0.54058452]
[1760056920214,0.19668889,1263.9,1263.8,1.31581176]
[1760056920416,0.39322124,1263.9,1263.8,1.12200495]
[1760056921210,0.39322124,1263.9,1263.8,0.54058452]
[1760056921412,0.39322124,1263.9,1263.8,1.12194834]
[1760056921616,0.39322124,1263.9,1263.8,0.54058452]
[1760056921915,0.19668889,1263.9,1263.8,0.54058452]
[1760056922713,0.19668889,1263.9,1263.8,1.12194834]
[1760056923919,0.39317913,1263.9,1263.8,1.12194834]
[1760056925317,0.39317913,1263.9,1263.8,0.54058452]
[1760056928520,0.19668889,1263.9,1263.8,0.54058452]
[1760056929220,0.19668889,1263.9,1263.8,1.31532267]
[1760056929518,0.19668889,1263.9,1263.8,1.50912948]
[1760056929719,0.19668889,1263.9,1263.8,0.73439133]
[1760056930016,0.19668889,1263.9,1263.8,0.54058452]
[1760056931717,0.19668889,1263.9,1263.8,1.31532267]
[1760056932418,0.19668889,1263.9,1263.8,1.50912948]
[1760056932621,0.19668889,1263.9,1263.8,1.31532267]
[1760056933722,0.19668889,1263.9,1263.8,0.54058452]
[1760056934123,0.19668889,1263.9,1263.8,1.50912948]
[1760056934522,0.19668889,1263.9,1263.8,0.73439133]
[1760056935220,0.19668889,1263.9,1263.8,1.50912948]
[1760056936722,0.19668889,1263.9,1263.8,1.89634408]
[1760056936927,0.19668889,1263.9,1263.8,1.70253727]
[1760056938726,0.19668889,1263.9,1263.8,1.31565334]
[1760056939128,0.19668889,1263.9,1263.8,0.54058452]
[1760056945629,0.19668889,1263.9,1263.8,0.53906158]
[1760056951731,0.19668889,1263.9,1263.8,1.12091146]
[1760056951932,0.39340246,1263.9,1263.8,1.12091146]
[1760056956133,0.39340246,1263.9,1263.8,0.53906158]
[1760056956334,0.19668889,1263.9,1263.8,0.53906158]
[1760056958734,0.3934366,1263.9,1263.8,1.12091146]
[1760056959934,0.3934366,1263.9,1263.8,1.12238292]
[1760056960438,0.3934366,1263.9,1263.8,0.54003178]
[1760056960837,0.3934366,1263.9,1263.8,1.12250887]
[1760056963233,0.3934366,1263.9,1263.8,0.54003178]
[1760056964234,0.3934366,1263.9,1263.8,1.12291151]
[1760056965441,0.3934366,1263.9,1263.8,0.54003178]
[1760056966544,0.3934366,1263.9,1263.8,1.1230543]
[1760056973552,0.3934366,1263.9,1263.8,0.54003178]
[1760056973751,0.19668889,1263.9,1263.8,1.1230543]
[1760056974148,0.19668889,1263.9,1263.8,0.54003178]
[1760056975550,0.19668889,1263.9,1263.8,0.54073048]
[1760056978558,0.19668889,1263.9,1263.8,1.12387552]
[1760056978960,0.19668889,1263.9,1263.8,0.54073048]
[1760056990067,0.19668889,1263.9,1263.2,0.58314504]
[1760056990371,0.19668889,1263.9,1263.3,0.54073686]
[1760056990571,0.19668889,1263.9,1263.4,0.54073686]
[1760056990770,0.19668889,1263.9,1263.5,0.54073686]
[1760056991066,0.19668889,1263.9,1263.2,0.58314504]
[1760056991067,0.19668889,1263.9,1263.6,0.54073686]
[1760056991271,0.19668889,1263.9,1263.1,0.58314504]
[1760056991570,0.19646105,1263.2,1263.1,0.58314504]
[1760056991770,0.19646105,1263.2,1263.1,0.54051281]
[1760056991972,0.19668889,1263.9,1263.1,1.12374773]
[1760056992168,0.19668889,1263.9,1263.2,0.54051281]
[1760056992370,0.19668889,1263.9,1263.3,0.54051281]
[1760056992569,0.19668889,1263.9,1263.4,0.54051281]
[1760056992768,0.19668889,1263.9,1263.5,0.54051281]
[1760056993070,0.19668889,1263.9,1263.0,0.58323492]
[1760056993266,0.19668889,1263.9,1263.1,0.54041726]
[1760056993469,0.19668889,1263.9,1263.2,0.54041726]
[1760056993669,0.19668889,1263.9,1263.3,0.54041726]
[1760056993870,0.19668889,1263.9,1263.4,0.54041726]
[1760056994069,0.19668889,1263.9,1263.5,0.54041726]
[1760056994373,0.19668889,1263.9,1263.0,0.58323492]
[1760056994574,0.19668889,1263.9,1263.1,0.5400132]
[1760056994774,0.19668889,1263.9,1263.2,0.5400132]
[1760056994971,0.19668889,1263.9,1263.3,0.5400132]
[1760056995172,0.19668889,1263.9,1263.4,0.5400132]
[1760056995376,0.19668889,1263.9,1263.5,0.5400132]
[1760056995676,0.19668889,1263.9,1263.0,0.58323492]
[1760056995875,0.19618976,1263.1,1263.0,0.58323492]
[1760056996074,0.19618976,1263.1,1263.0,1.12308327]
[1760057000575,0.19668889,1263.9,1263.0,0.53984835]
[1760057000780,0.19668889,1263.9,1263.1,0.53984835]
[1760057000981,0.19668889,1263.9,1263.2,0.53984835]
[1760057001277,0.19668889,1263.9,1263.3,0.53984835]
[1760057001481,0.19668889,1263.9,1262.9,0.58323492]
[1760057001777,0.19668889,1263.9,1263.0,0.53987893]
[1760057001981,0.19668889,1263.9,1263.1,0.53987893]
[1760057002175,0.19668889,1263.9,1263.2,0.53987893]
[1760057002480,0.19668889,1263.9,1263.3,0.53987893]
[1760057002677,0.19668889,1263.9,1262.9,0.58323492]
[1760057002878,0.19668889,1263.9,1263.0,0.53981809]
[1760057003078,0.19668889,1263.9,1263.1,0.53981809]
[1760057003382,0.19668889,1263.9,1263.2,0.53981809]
[1760057003579,0.19668889,1263.9,1263.3,0.53981809]
[1760057003782,0.19668889,1263.9,1263.4,0.53981809]
[1760057003982,0.19668889,1263.9,1262.9,0.58323492]
[1760057004183,0.19668889,1263.9,1263.0,0.53961108]
[1760057004382,0.19668889,1263.9,1263.1,0.53961108]
[1760057004683,0.19668889,1263.9,1263.2,0.53961108]
[1760057004884,0.19668889,1263.9,1263.3,0.53961108]
[1760057005079,0.19668889,1263.9,1263.4,0.53961108]
[1760057005282,0.19668889,1263.9,1262.8,0.58323492]
[1760057005485,0.19595246,1262.9,1262.8,0.58323492]
[1760057005680,0.19595246,1262.9,1262.8,1.12266815]
[1760057005985,0.19595246,1262.9,1262.8,0.53943323]
[1760057006982,0.19668889,1263.9,1262.8,0.53943323]
[1760057007185,0.19668889,1263.9,1262.9,0.53943323]
[1760057007383,0.19668889,1263.9,1263.0,0.53943323]
[1760057007685,0.19668889,1263.9,1263.1,0.53943323]
[1760057007882,0.19668889,1263.9,1263.2,0.53943323]
[1760057008085,0.19668889,1263.9,1263.3,0.53943323]
[1760057008284,0.19668889,1263.9,1263.4,0.53943323]
[1760057008484,0.19668889,1263.9,1262.8,0.58323492]
[1760057008688,0.19595508,1263.0,1262.9,0.53895011]
[1760057009691,0.19668889,1263.9,1262.9,0.53895011]
[1760057009990,0.19668889,1263.9,1263.0,0.53895011]
[1760057010190,0.19668889,1263.9,1263.1,0.53895011]
[1760057010390,0.19668889,1263.9,1263.2,0.53895011]
[1760057010590,0.19668889,1263.9,1263.3,0.53895011]
[1760057010789,0.19668889,1263.9,1263.4,0.53895011]
[1760057010991,0.19668889,1263.9,1262.7,0.58323492]
[1760057011188,0.1960232,1262.9,1262.8,0.53904619]
[1760057012792,0.1960232,1262.9,1262.8,1.12228111]
[1760057017089,0.19668889,1263.9,1262.8,0.53904619]
[1760057017295,0.19668889,1263.9,1262.9,0.53904619]
[1760057017594,0.19668889,1263.9,1263.0,0.53904619]
[1760057017793,0.19668889,1263.9,1262.6,0.58323492]
[1760057017991,0.19668889,1263.9,1262.7,0.5391151]
[1760057018192,0.19668889,1263.9,1262.8,0.5391151]
[1760057018390,0.19668889,1263.9,1262.9,0.5391151]
[1760057018693,0.19668889,1263.9,1263.0,0.5391151]
[1760057018894,0.19668889,1263.9,1263.1,0.5391151]
[1760057019095,0.19668889,1263.9,1262.6,0.58323492]
[1760057019292,0.19668889,1263.9,1262.7,0.53900784]
[1760057019594,0.19668889,1263.9,1262.8,0.53900784]
[1760057019791,0.19668889,1263.9,1262.9,0.53900784]
[1760057019991,0.19668889,1263.9,1263.0,0.53900784]
[1760057020195,0.19668889,1263.9,1263.1,0.53900784]
[1760057020396,0.19668889,1263.9,1262.6,0.58323492]
[1760057020598,0.19668889,1263.9,1262.7,0.53898488]
[1760057020795,0.19668889,1263.9,1262.8,0.53898488]
[1760057020993,0.19668889,1263.9,1262.9,0.53898488]
[1760057021198,0.19668889,1263.9,1263.0,0.53898488]
[1760057021395,0.19668889,1263.9,1262.6,0.58323492]
[1760057021696,0.19668889,1263.9,1262.7,0.53895938]
[1760057021897,0.19668889,1263.9,1262.8,0.53895938]
[1760057022099,0.19668889,1263.9,1262.9,0.53895938]
[1760057022300,0.19668889,1263.9,1263.0,0.53895938]
[1760057022498,0.19668889,1263.9,1263.1,0.53895938]
[1760057022698,0.19668889,1263.9,1262.5,0.58323492]
[1760057023002,0.19590822,1262.7,1262.6,0.53893455]
[1760057023303,0.19590822,1262.7,1262.6,1.12035391]
[1760057023498,0.19668889,1263.9,1262.6,1.12035391]
[1760057023697,0.19668889,1263.9,1262.7,0.53893455]
[1760057023901,0.19668889,1263.9,1262.8,0.53893455]
[1760057024098,0.19668889,1263.9,1262.9,0.53893455]
[1760057024301,0.19668889,1263.9,1263.0,0.53893455]
[1760057024601,0.19668889,1263.9,1263.1,0.53893455]
[1760057024804,0.19668889,1263.9,1262.6,0.58141936]
[1760057025001,0.19668889,1263.9,1262.7,0.53902965]
[1760057025197,0.19668889,1263.9,1262.8,0.53902965]
[1760057025397,0.19668889,1263.9,1262.9,0.53902965]
[1760057025599,0.19668889,1263.9,1263.0,0.53902965]
[1760057025901,0.19668889,1263.9,1263.1,0.53902965]
[1760057026099,0.19668889,1263.9,1262.6,0.58141936]
[1760057026400,0.19668889,1263.9,1262.7,0.5390892]
[1760057026598,0.19668889,1263.9,1262.8,0.5390892]
[1760057026802,0.19668889,1263.9,1262.9,0.5390892]
[1760057027102,0.19668889,1263.9,1263.0,0.5390892]
[1760057027301,0.19668889,1263.9,1263.1,0.5390892]
[1760057027603,0.19668889,1263.9,1262.6,0.58141936]
[1760057027802,0.19668889,1263.9,1262.7,0.53932116]
[1760057028001,0.19668889,1263.9,1262.8,0.53932116]
[1760057028198,0.19668889,1263.9,1262.9,0.53932116]
[1760057028401,0.19668889,1263.9,1263.0,0.53932116]
[1760057028697,0.19668889,1263.9,1262.4,0.58141936]
[1760057028901,0.19668889,1263.9,1262.5,0.53937153]
[1760057029101,0.19668889,1263.9,1262.6,0.53937153]
[1760057029303,0.19668889,1263.9,1262.7,0.53937153]
[1760057029503,0.19668889,1263.9,1262.8,0.53937153]
[1760057029704,0.19668889,1263.9,1262.9,0.53937153]
[1760057030000,0.19668889,1263.9,1263.0,0.53937153]
[1760057030205,0.19668889,1263.9,1262.4,0.58141936]
[1760057030406,0.19668889,1263.9,1262.5,0.539585]
[1760057030706,0.19668889,1263.9,1262.6,0.539585]
[1760057031000,0.19668889,1263.9,1262.7,0.539585]
[1760057031204,0.19668889,1263.9,1262.8,0.539585]
[1760057031403,0.19668889,1263.9,1262.9,0.539585]
[1760057031601,0.19668889,1263.9,1263.0,0.539585]
[1760057031902,0.19668889,1263.9,1262.4,0.58141936]
[1760057032206,0.19610814,1262.6,1262.5,0.53961265]
[1760057032505,0.19668889,1263.9,1262.5,0.53961265]
[1760057032702,0.19668889,1263.9,1262.6,0.53961265]
[1760057032903,0.19668889,1263.9,1262.7,0.53961265]
[1760057033106,0.19668889,1263.9,1262.4,0.77536932]
[1760057033107,0.19668889,1263.9,1262.8,0.53961265]
[1760057033402,0.19668889,1263.9,1262.9,0.53961265]
[1760057033607,0.19668889,1263.9,1263.0,0.53961265]
[1760057033806,0.19668889,1263.9,1263.1,0.53961265]
[1760057034003,0.19668889,1263.9,1262.4,0.77536932]
[1760057034203,0.19621449,1262.6,1262.5,0.53988035]
[1760057034702,0.19668889,1263.9,1262.5,0.53988035]
[1760057034903,0.19668889,1263.9,1262.6,0.53988035]
[1760057035105,0.19668889,1263.9,1262.7,0.53988035]
[1760057035304,0.19668889,1263.9,1262.8,0.53988035]
[1760057035510,0.19668889,1263.9,1262.2,0.58141936]
[1760057035705,0.19625021,1262.3,1262.2,0.58141936]
[1760057035905,0.19625021,1262.3,1262.2,1.12160259]
[1760057036308,0.19625021,1262.4,1262.2,1.12160259]
[1760057036512,0.19625021,1262.4,1262.3,0.54018323]
[1760057036711,0.19625021,1262.4,1262.3,1.12160259]
[1760057039509,0.19625021,1262.4,1262.3,0.54018323]
[1760057040111,0.19625021,1262.4,1262.3,1.12160259]
[1760057041217,0.19625021,1262.4,1262.3,0.54018323]
[1760057042017,0.19668889,1263.9,1262.3,0.54018323]
[1760057042215,0.19668889,1263.9,1262.4,0.54018323]
[1760057042414,0.19668889,1263.9,1262.5,0.54018323]
[1760057042620,0.19668889,1263.9,1262.6,0.54018323]
[1760057042818,0.19668889,1263.9,1262.7,0.54018323]
[1760057043118,0.19668889,1263.9,1262.8,0.54018323]
[1760057043318,0.19668889,1263.9,1262.2,0.58141936]
[1760057043517,0.19641216,1262.4,1262.3,0.54064598]
[1760057048025,0.19641216,1262.5,1262.3,0.54064598]
[1760057048228,0.19641216,1262.6,1262.4,0.54064598]
[1760057048522,0.19641216,1262.6,1262.5,1.1243903]
[1760057049726,0.19641216,1262.7,1262.5,0.54064598]
[1760057050026,0.19641216,1262.7,1262.6,1.12410194]
[1760057050325,0.19641216,1262.7,1262.6,0.54064598]
[1760057050725,0.19668889,1263.9,1262.6,0.54064598]
[1760057050922,0.19668889,1263.9,1262.7,0.54064598]
[1760057051222,0.19668889,1263.9,1262.8,0.54064598]
[1760057051423,0.19668889,1263.9,1262.9,0.54064598]
[1760057051627,0.19668889,1263.9,1263.0,0.54064598]
[1760057051922,0.19668889,1263.9,1262.3,0.77740592]
[1760057052124,0.19676892,1262.5,1262.4,0.541365]
[1760057053527,0.19676892,1262.6,1262.4,1.12482096]
[1760057053727,0.19676892,1263.4,1262.5,0.541365]
[1760057053928,0.19676892,1263.4,1263.1,0.77689065]
[1760057054128,0.19676892,1263.4,1263.2,0.73531496]
[1760057054328,0.19676892,1263.4,1263.3,0.541365]
[1760057054821,0.19668889,1263.9,1263.3,0.541365]
[1760057055123,0.19668889,1263.9,1263.4,0.541365]
[1760057055324,0.19668889,1263.9,1263.5,0.541365]
[1760057055628,0.19668889,1263.9,1262.8,0.7764184]
[1760057055826,0.19667568,1263.0,1262.9,0.54062826]
[1760057056626,0.19667568,1263.1,1262.9,1.1230967]
[1760057056825,0.19667568,1263.1,1263.0,1.1230967]
[1760057057028,0.19667568,1263.3,1263.0,0.73457822]
[1760057057229,0.19667568,1263.3,1263.1,1.12334115]
[1760057057431,0.19668889,1263.9,1263.2,0.54062826]
[1760057057630,0.19668889,1263.9,1263.3,0.54062826]
[1760057057827,0.19668889,1263.9,1263.4,0.54062826]
[1760057058132,0.19668889,1263.9,1263.5,0.54062826]
[1760057058328,0.19668889,1263.9,1263.6,0.54062826]
[1760057058633,0.19668889,1263.9,1263.0,0.58271289]
[1760057058831,0.19662136,1263.2,1263.1,0.54058397]
[1760057060332,0.19662136,1263.2,1263.1,1.12329686]
[1760057066938,0.19662136,1263.2,1263.1,0.54058397]
[1760057067136,0.19662136,1263.2,1263.1,1.12279192]
[1760057069641,0.19662136,1263.2,1263.1,0.54058397]
[1760057070638,0.19662136,1263.2,1263.1,1.12249204]
[1760057077444,0.19662136,1263.2,1263.1,1.119772]
[1760057078141,0.19662136,1263.3,1263.1,0.53879265]
[1760057078342,0.19662136,1263.3,1263.2,1.11962183]
[1760057081143,0.19662136,1263.3,1263.2,0.53879265]
[1760057081346,0.19662136,1263.3,1263.2,1.11962183]
[1760057081842,0.19662136,1263.3,1263.2,0.53879265]
[1760057082445,0.13764652,1264.2,1263.2,0.53879265]
[1760057082647,0.13764652,1264.2,1263.3,0.53879265]
[1760057082943,0.13764652,1264.2,1263.4,0.53879265]
[1760057083145,0.13764652,1264.2,1263.5,0.53879265]
[1760057083346,0.13764652,1264.2,1263.6,0.53879265]
[1760057083546,0.13764652,1264.2,1263.0,0.58082918]
[1760057083744,0.19606171,1263.2,1263.1,0.53862782]
[1760057088545,0.19606171,1263.2,1263.1,1.119457]
[1760057090651,0.19606171,1263.2,1263.1,0.53862782]
[1760057090948,0.13764652,1264.2,1263.1,0.53862782]
[1760057091150,0.13764652,1264.2,1263.2,0.53862782]
[1760057091446,0.13764652,1264.2,1263.3,0.53862782]
[1760057091647,0.13764652,1264.2,1262.8,0.58082918]
[1760057091648,0.13764652,1264.2,1262.5,0.58082918]
[1760057091951,0.13764652,1264.2,1262.6,0.53939874]
[1760057092247,0.13764652,1264.2,1262.7,0.53939874]
[1760057092448,0.13764652,1264.2,1262.8,0.53939874]
[1760057092652,0.13764652,1264.2,1262.9,0.53939874]
[1760057092852,0.13764652,1264.2,1263.0,0.53939874]
[1760057093055,0.13764652,1264.2,1263.1,0.53939874]
[1760057093254,0.13764652,1264.2,1263.2,0.53939874]
[1760057093452,0.13764652,1264.2,1263.3,0.53939874]
[1760057093655,0.13764652,1264.2,1263.4,0.53939874]
[1760057093851,0.13764652,1264.2,1263.5,0.53939874]
[1760057094055,0.13764652,1264.2,1263.1,0.58082918]
[1760057094355,0.13764652,1264.2,1263.2,0.53889605]
[1760057094652,0.13764652,1264.2,1263.3,0.53889605]
[1760057094855,0.13764652,1264.2,1263.4,0.53889605]
[1760057095156,0.13764652,1264.2,1263.5,0.53889605]
[1760057095353,0.13764652,1264.2,1263.1,0.58082918]
[1760057095557,0.13764652,1264.2,1263.2,0.53905936]
[1760057095853,0.13764652,1264.2,1263.3,0.53905936]
[1760057096052,0.13764652,1264.2,1263.4,0.53905936]
[1760057096251,0.13764652,1264.2,1263.5,0.53905936]
[1760057096456,0.13764652,1264.2,1263.1,0.58082918]
[1760057096656,0.13764652,1264.2,1263.2,0.53916956]
[1760057096956,0.13764652,1264.2,1263.3,0.53916956]
[1760057097255,0.13764652,1264.2,1263.4,0.53916956]
[1760057097456,0.13764652,1264.2,1263.5,0.53916956]
[1760057097652,0.13764652,1264.2,1263.6,0.53926167]
[1760057097857,0.13764652,1264.2,1263.1,0.58082918]
[1760057098057,0.13764652,1264.2,1263.2,0.53921577]
[1760057098352,0.13764652,1264.2,1263.3,0.53921577]
[1760057098653,0.13764652,1264.2,1263.4,0.53921577]
[1760057098856,0.13764652,1264.2,1263.5,0.53921577]
[1760057099053,0.13764652,1264.2,1263.6,0.53921577]
[1760057099251,0.13764652,1264.2,1263.1,0.58082918]
[1760057099456,0.13764652,1264.2,1263.2,0.5395444]
[1760057099754,0.13764652,1264.2,1263.3,0.5395444]
[1760057099952,0.13764652,1264.2,1263.4,0.5395444]
[1760057100253,0.13764652,1264.2,1263.5,0.5395444]
[1760057100452,0.13764652,1264.2,1263.6,0.5395444]
[1760057100652,0.13764652,1264.2,1263.1,0.58082918]
[1760057100954,0.1963241,1263.2,1263.1,0.58082918]
[1760057101256,0.1963241,1263.2,1263.1,1.12057677]
[1760057101458,0.1963241,1263.3,1263.1,0.53974759]
[1760057101752,0.1963241,1263.3,1263.2,1.12171955]
[1760057102956,0.1963241,1263.3,1263.2,0.53974759]
[1760057103256,0.13764652,1264.2,1263.2,0.53974759]
[1760057103458,0.13764652,1264.2,1263.3,0.53974759]
[1760057103655,0.13764652,1264.2,1263.4,0.53974759]
[1760057103854,0.13764652,1264.2,1263.5,0.53974759]
[1760057104052,0.13764652,1264.2,1262.4,1.16533598]
[1760057105658,0.19669492,1262.9,1262.8,0.583472]
[1760057105952,0.19669492,1262.9,1262.8,1.12457706]
[1760057106654,0.13764652,1264.2,1262.8,1.12457706]
[1760057106959,0.13764652,1264.2,1262.9,0.54110506]
[1760057107155,0.13764652,1264.2,1263.0,0.54110506]
[1760057107355,0.13764652,1264.2,1263.1,0.54110506]
[1760057107656,0.13764652,1264.2,1263.2,0.54110506]
[1760057107853,0.13764652,1264.2,1263.3,0.54110506]
[1760057108055,0.13764652,1264.2,1263.4,0.54110506]
[1760057108352,0.13764652,1264.2,1263.0,0.583472]
[1760057108558,0.13764652,1264.2,1263.1,1.12411927]
[1760057108757,0.13764652,1264.2,1263.2,0.54064727]
[1760057109059,0.13764652,1264.2,1263.3,0.54064727]
[1760057109257,0.13764652,1264.2,1263.4,0.54064727]
[1760057109463,0.13764652,1264.2,1263.1,0.583472]
[1760057109757,0.13764652,1264.2,1263.2,0.54083216]
[1760057109956,0.13764652,1264.2,1263.3,0.54083216]
[1760057110160,0.13764652,1264.2,1263.4,0.54083216]
[1760057110356,0.13764652,1264.2,1263.5,0.54083216]
[1760057110656,0.13764652,1264.2,1263.0,0.583472]
[1760057110861,0.13764652,1264.2,1263.1,0.54098861]
[1760057111062,0.13764652,1264.2,1263.2,0.54098861]
[1760057111261,0.13764652,1264.2,1263.3,0.54098861]
[1760057111461,0.13764652,1264.2,1263.4,0.54098861]
[1760057111662,0.13764652,1264.2,1263.5,0.54098861]
[1760057111859,0.13764652,1264.2,1263.1,0.583472]
[1760057112061,0.13764652,1264.2,1263.2,0.54104739]
[1760057112263,0.13764652,1264.2,1263.3,0.54104739]
[1760057112459,0.13764652,1264.2,1263.4,0.54104739]
[1760057112659,0.13764652,1264.2,1263.1,0.583472]
[1760057112660,0.13764652,1264.2,1263.5,0.54104739]
[1760057112962,0.13764652,1264.2,1263.6,0.54104739]
[1760057113263,0.13764652,1264.2,1263.2,0.583472]
[1760057113458,0.13764652,1264.2,1263.3,0.54146302]
[1760057113658,0.13764652,1264.2,1263.4,0.54146302]
[1760057113859,0.13764652,1264.2,1263.5,0.54146302]
[1760057114059,0.13764652,1264.2,1263.6,0.54146302]
[1760057114262,0.13764652,1264.2,1263.1,0.583472]
[1760057114460,0.13764652,1264.2,1263.2,0.5416543]
[1760057114660,0.13764652,1264.2,1263.3,0.5416543]
[1760057114863,0.13764652,1264.2,1263.4,0.5416543]
[1760057115061,0.13764652,1264.2,1263.1,0.583472]
[1760057115062,0.13764652,1264.2,1263.5,0.5416543]
[1760057115260,0.13764652,1264.2,1263.6,0.5416543]
[1760057115465,0.13764652,1264.2,1263.1,0.583472]
[1760057115661,0.13764652,1264.2,1263.2,0.54160765]
[1760057115864,0.13764652,1264.2,1263.3,0.54160765]
[1760057116164,0.13764652,1264.2,1263.4,0.54160765]
[1760057116464,0.13764652,1264.2,1263.5,0.54160765]
[1760057116664,0.13764652,1264.2,1263.6,0.54160765]
[1760057116862,0.13764652,1264.2,1263.7,0.54160765]
[1760057117060,0.13764652,1264.2,1263.8,0.54160765]
[1760057117265,0.13764652,1264.2,1263.9,0.54160765]
[1760057117562,0.13764652,1264.2,1264.0,0.54160765]
[1760057117762,0.13764652,1264.2,1263.5,0.583472]
[1760057117966,0.13764652,1264.2,1263.6,0.54119077]
[1760057118266,0.13764652,1264.2,1263.7,0.54119077]
[1760057118466,0.13764652,1264.2,1263.8,0.54119077]
[1760057118667,0.13764652,1264.2,1263.4,0.583472]
[1760057118865,0.13764652,1264.2,1263.5,0.54130068]
[1760057119165,0.13764652,1264.2,1263.6,0.54130068]
[1760057119472,0.13764652,1264.2,1263.7,0.54130068]
[1760057119668,0.13764652,1264.2,1263.3,0.583472]
[1760057119969,0.13764652,1264.2,1263.4,0.54138435]
[1760057120168,0.13764652,1264.2,1263.5,0.54138435]
[1760057120468,0.13764652,1264.2,1263.6,0.54138435]
[1760057120768,0.13764652,1264.2,1263.7,0.54138435]
[1760057120966,0.13764652,1264.2,1263.8,0.54138435]
[1760057121171,0.13764652,1264.2,1263.3,0.583472]
[1760057121370,0.13764652,1264.2,1263.4,0.54093792]
[1760057121569,0.13764652,1264.2,1263.5,0.54093792]
[1760057121767,0.13764652,1264.2,1263.6,0.54093792]
[1760057121967,0.13764652,1264.2,1263.7,0.54093792]
[1760057122171,0.13764652,1264.2,1263.3,0.583472]
[1760057122371,0.13764652,1264.2,1263.4,0.54111732]
[1760057122571,0.13764652,1264.2,1263.5,0.54111732]
[1760057122870,0.13764652,1264.2,1263.6,0.54111732]
[1760057123071,0.13764652,1264.2,1263.7,0.54111732]
[1760057123272,0.13764652,1264.2,1263.3,0.583472]
[1760057123469,0.13764652,1264.2,1263.4,0.54111927]
[1760057123673,0.13764652,1264.2,1263.5,0.54111927]
[1760057123874,0.13764652,1264.2,1263.6,0.54111927]
[1760057124174,0.13764652,1264.2,1263.7,0.54111927]
[1760057124370,0.13764652,1264.2,1263.3,0.583472]
[1760057124573,0.13764652,1264.2,1263.4,0.54114875]
[1760057124771,0.13764652,1264.2,1263.5,0.54114875]
[1760057124972,0.13764652,1264.2,1263.6,0.54114875]
[1760057125170,0.13764652,1264.2,1263.7,0.54114875]
[1760057125373,0.13764652,1264.2,1263.3,0.583472]
[1760057125573,0.13764652,1264.2,1263.4,0.54114434]
[1760057125875,0.13764652,1264.2,1263.5,0.54114434]
[1760057126078,0.13764652,1264.2,1263.6,0.54114434]
[1760057126373,0.13764652,1264.2,1263.7,0.54114434]
[1760057126572,0.13764652,1264.2,1263.3,0.583472]
[1760057126776,0.13764652,1264.2,1263.4,0.54115875]
[1760057126977,0.13764652,1264.2,1263.5,0.54115875]
[1760057127273,0.13764652,1264.2,1263.6,0.54115875]
[1760057127474,0.13764652,1264.2,1263.7,0.54115875]
[1760057127775,0.13764652,1264.2,1263.3,0.583472]
[1760057128074,0.13764652,1264.2,1263.4,0.54115029]
[1760057128279,0.13764652,1264.2,1263.5,0.54115029]
[1760057128475,0.13764652,1264.2,1263.6,0.54115029]
[1760057128679,0.13764652,1264.2,1263.7,0.54115029]
[1760057128876,0.13764652,1264.2,1263.3,0.583472]
[1760057129079,0.13764652,1264.2,1263.4,0.54115264]
[1760057129278,0.13764652,1264.2,1263.5,0.54115264]
[1760057129481,0.13764652,1264.2,1263.6,0.54115264]
[1760057129678,0.13764652,1264.2,1263.7,0.54115264]
[1760057129979,0.13764652,1264.2,1263.3,0.583472]
[1760057130178,0.13764652,1264.2,1263.4,0.54115491]
[1760057130376,0.13764652,1264.2,1263.5,0.54115491]
[1760057130681,0.13764652,1264.2,1263.6,0.54115491]
[1760057130878,0.13764652,1264.2,1263.7,0.54115491]
[1760057131078,0.13764652,1264.2,1263.3,0.583472]
[1760057131279,0.13764652,1264.2,1263.4,0.54115085]
[1760057131582,0.13764652,1264.2,1263.5,0.54115085]
[1760057131777,0.13764652,1264.2,1263.6,0.54115085]
[1760057132078,0.13764652,1264.2,1263.7,0.54115085]
[1760057132277,0.13764652,1264.2,1263.8,0.54115085]
[1760057132577,0.13764652,1264.2,1263.3,0.583472]
[1760057132782,0.13764652,1264.2,1263.4,0.54074192]
[1760057132979,0.13764652,1264.2,1263.5,0.54074192]
[1760057133177,0.13764652,1264.2,1263.6,0.54074192]
[1760057133380,0.13764652,1264.2,1263.7,0.54074192]
[1760057133579,0.13764652,1264.2,1263.8,0.54074192]
[1760057133784,0.13764652,1264.2,1263.2,0.583472]
[1760057133979,0.13764652,1264.2,1263.3,0.54075513]
[1760057134182,0.13764652,1264.2,1263.2,0.583472]
[1760057134183,0.13764652,1264.2,1263.4,0.54075513]
[1760057134483,0.13764652,1264.2,1263.5,0.54075513]
[1760057134684,0.13764652,1264.2,1263.6,0.54075513]
[1760057134882,0.13764652,1264.2,1263.7,0.54075513]
[1760057135081,0.13764652,1264.2,1263.8,0.54075513]
[1760057135381,0.13764652,1264.2,1263.2,0.583472]
[1760057135582,0.13764652,1264.2,1263.3,0.54077682]
[1760057135785,0.13764652,1264.2,1263.4,0.54077682]
[1760057136086,0.13764652,1264.2,1263.5,0.54077682]
[1760057136381,0.13764652,1264.2,1263.6,0.54077682]
[1760057136584,0.13764652,1264.2,1263.7,0.54077682]
[1760057136785,0.13764652,1264.2,1263.2,0.583472]
[1760057136786,0.13764652,1264.2,1263.8,0.54077682]
[1760057137086,0.13764652,1264.2,1263.2,0.583472]
[1760057137288,0.13764652,1264.2,1263.3,0.54079218]
[1760057137483,0.13764652,1264.2,1263.4,0.54079218]
[1760057137781,0.13764652,1264.2,1263.5,0.54079218]
[1760057137986,0.13764652,1264.2,1263.6,0.54079218]
[1760057138184,0.13764652,1264.2,1263.7,0.54079218]
[1760057138393,0.13764652,1264.2,1263.8,0.54079218]
[1760057138591,0.13764652,1264.2,1263.2,0.583472]
[1760057138791,0.13764652,1264.2,1263.3,0.54079585]
[1760057138990,0.13764652,1264.2,1263.4,0.54079585]
[1760057139191,0.13764652,1264.2,1263.5,0.54079585]
[1760057139493,0.13764652,1264.2,1263.6,0.54079585]
[1760057139694,0.13764652,1264.2,1263.7,0.54079585]
[1760057139894,0.13764652,1264.2,1263.8,0.54079585]
[1760057140091,0.13764652,1264.2,1263.1,0.583472]
[1760057140296,0.13764652,1264.2,1263.2,0.54079287]